[Event "26th Hit Open-A 2022"]
[Site "Nova Gorica"]
[Date "2022.09.18"]
[Round "4.36"]
[White "Oestmann, Lukas"]
[Black "Schloffer, Jasmin-Denise"]
[Result "1/2-1/2"]
[ECO "C42"]
[WhiteElo "1620"]
[BlackElo "2127"]
[Annotator "TA"]
[PlyCount "98"]
[EventDate "2022.09.16"]
[EventType "swiss"]
[EventCountry "SLO"]
[SourceTitle "playchess.com"]
[Source "ChessBase"]
[SourceQuality "1"]
[TimeControl "5400+30"]

{[%evp 13,98,16,20,11,15,17,15,22,29,-33,10,-58,-49,-41,-50,-102,-81,-100,-88,-105,207,-21,-17,-20,0,-8,0,49,43,24,72,65,272,279,262,202,268,259,301,214,471,471,429,179,259,287,351,353,331,0,290,79,113,113,110,107,112,114,293,65,51,11,40,42,56,62,784,767,29988,252,206,168,187,147,229,229,229,150,157,83,75,83,211,0,0,0,194]} 1. e4 {[%emt 0:00:03]} e5 {[%emt 0:00:04]} 2. Nf3 {[%emt 0:00:02]} Nf6 {[%emt 0:00:04]} 3. Nxe5 {[%emt 0:00:30]} d6 {[%emt 0:00:04]} 4. Nf3 {[%emt 0:00:08]} Nxe4 {[%emt 0:00:05]} 5. Nc3 {[%emt 0:00:08]} Nxc3 {[%emt 0:00:06]} 6. dxc3 {[%emt 0:00:04]} Be7 {[%emt 0:00:05]} 7. Be3 {[%emt 0:00:27]} O-O {[%emt 0:00:06]} 8. Qd2 {[%emt 0:00:30] C42: Petroff Defence: 3 Nxe5 and unusual White 3rd moves.} Nd7 {[%emt 0:00:05]} 9. O-O-O {[%emt 0:01:08]} Nf6 {[%emt 0:00:05]} 10. Bd3 {[%emt 0:02:31]} c5 {[%emt 0:00:07]} 11. c4 {[%emt 0:09:17]} (11. Rhe1 $11) 11... a6 {[%emt 0:01:32][%cal Ob7b5]} (11... b5 $5) 12. Ng5 {[%emt 0:13:26]} (12. Bf4 $11) 12... b5 $15 {[%emt 0:09:59] [#]} 13. f3 $146 {[%emt 0:06:37]} ({Predecessor:} 13. c3 Qa5 14. Bb1 bxc4 15. h4 d5 16. h5 h6 17. Nf3 Ne4 18. Qc2 Be6 19. Ne5 {0-1 (33) Silva Lucena,C (2220)-Gavilan Diaz,M (2334) Marbella 2018}) 13... Rb8 {[%emt 0:09:54]} 14. g4 {[%emt 0:05:51]} (14. Rhe1 $15) 14... Qb6 {[%emt 0:02:54]} 15. b3 {[%emt 0:01:57]} Rd8 {[%emt 0:07:19]} 16. Bf4 {[%emt 0:16:58]} Bf8 $2 {[%emt 0:01:14][%mdl 8192] [#]} (16... Rb7 $17 {...bxc4 is the strong threat.} 17. c3 bxc4 18. Bxc4 d5) 17. h4 $2 {[%emt 0:03:02]} (17. Nxf7 $1 $18 {[%cal Og4g5][%mdl 512] And now g5! would win.} Kxf7 (17... Rd7 18. Ng5) 18. g5) 17... Rb7 $11 {[%emt 0:02:57]} (17... h6 18. Nxf7 Kxf7 19. g5 $16) 18. Ne4 {[%emt 0:00:53]} d5 {[%emt 0:04:25]} 19. Nxf6+ {[%emt 0:01:34]} Qxf6 {[%emt 0:00:05][%cal Rf6a1]} 20. Kb1 {[%emt 0:00:08] Prevents Qa1+.} bxc4 {[%emt 0:06:24]} 21. Bg5 {[%emt 0:03:41]} Qd6 {[%emt 0:00:13]} (21... Qxf3 $11 {might be stronger.} 22. Rhf1 (22. Bxd8 cxd3 23. Qxd3 Qxd3 $15) (22. Be2 Qe4 $17) 22... Qxg4) 22. Bxc4 $1 $16 {[%emt 0:01:54]} d4 $2 {[%emt 0:01:31]} (22... dxc4 $14 23. Bxd8 Qc6) 23. Bxd8 $18 {[%emt 0:01:17]} Qxd8 {[%emt 0:00:04]} 24. Qd3 {[%emt 0:03:19]} Rb6 {[%emt 0:01:07]} 25. Rhe1 {[%emt 0:01:51]} a5 {[%emt 0:02:45]} 26. Qe4 {[%emt 0:03:55]} Bd7 $2 {[%emt 0:03:04]} (26... Be6 {keeps fighting.}) 27. Qd5 {[%emt 0:02:02]} Rf6 {[%emt 0:00:05]} 28. Re5 {[%emt 0:02:54]} (28. g5 $142 Re6 29. Rxe6 fxe6 30. Qe5) 28... Qc7 {[%emt 0:01:22] [#]} (28... Qc8 $142) 29. Qe4 $1 {[%emt 0:04:24]} Bd6 {[%emt 0:05:36]} 30. Qa8+ {[%emt 0:00:53]} ({Not} 30. Rh5 g6 31. Rd5 Bc6 $14) 30... Bf8 {[%emt 0:00:19]} 31. Qe4 {[%emt 0:03:57]} (31. Re7 $18) 31... Bc6 $2 {[%emt 0:04:36][%mdl 8192]} (31... Bd6 $1 $11 {and Black has nothing to worry.} 32. Qa8+ (32. Rh5 g6 $14) 32... Bf8) 32. Qe1 $2 {[%emt 0:01:53]} (32. Bd5 $18 {and the rest is easy.}) 32... Bd6 {[%emt 0:02:18]} 33. Rf5 {[%emt 0:00:48]} Rxf5 {[%emt 0:03:46]} 34. gxf5 {[%emt 0:00:03][%cal Of5f6] aiming for f6!} Bg3 {[%emt 0:00:32]} 35. Qh1 {[%emt 0:01:09][%cal Of5f6]} h6 $2 {[%emt 0:01:23] [#]} (35... Qf4 $16) 36. Rg1 $2 {[%emt 0:01:04]} ({Only move:} 36. f6 $1 $18 g6 37. Rg1) 36... Be5 $1 $14 {[%emt 0:00:22][%cal Od4d3]} 37. Bd3 {[%emt 0:01:10]} (37. Qg2 $5 {[%cal Rg2g6]}) 37... Bf6 {[%emt 0:00:15]} 38. Qg2 {[%emt 0:01:29]} a4 {[%emt 0:02:53]} 39. Qg3 {[%emt 0:01:28]} Qb7 {[%emt 0:03:11][%mdl 8192]} (39... Qd8 $14) 40. Qd6 $1 $18 {[%emt 0:01:08][%csl LRc5,LRf6] Intending Qxf6 and mate.} Kh7 {[%emt 0:02:43]} 41. Qxc5 $2 {[%emt 0:00:44]} (41. Qf8 {mates} Be4 42. fxe4 g5 43. hxg5 Bxg5 44. e5 f6 45. exf6 axb3 46. cxb3) 41... axb3 {[%emt 0:00:33]} 42. cxb3 {[%emt 0:01:04]} Bxf3 {[%emt 0:01:42]} 43. Rc1 {[%emt 0:00:43]} Be4 {[%emt 0:01:00]} (43... Qb8 $16 {was worth a try.} 44. Qc4 Qe8) 44. Qc2 $1 {[%emt 0:00:33]} Bd5 {[%emt 0:02:19]} 45. Qc7 {[%emt 0:01:08] Strongly threatening Qxb7.} Qb4 {[%emt 0:00:28][%cal Od5b3] Threatens to win with ...Bxb3!} 46. Qc5 {[%emt 0:00:27]} (46. Kb2 $142) 46... Qd2 $16 {[%emt 0:01:22]} 47. Qc2 {[%emt 0:00:25]} ({Don't play} 47. Qxd5 Qxd3+ 48. Rc2 Qf1+ 49. Rc1 Qd3+ 50. Rc2 Qf1+ 51. Rc1 Qd3+ $11) 47... Qb4 {[%emt 0:00:05]} (47... Qe3 $16 {might work better.}) 48. Qc5 $2 {[%emt 0:00:11]} (48. Kb2 $18) 48... Qd2 $1 $11 {[%emt 0:00:23]} 49. Qc2 {[%emt 0:00:06]} (49. Qxd5 $11 Qxd3+ 50. Rc2) 49... Qb4 $1 {[%emt 0:00:08] Weighted Error Value: White=0.67/Black=0.61} 1/2-1/2

[Event "26th Hit Open-A 2022"]
[Site "Nova Gorica"]
[Date "2022.09.18"]
[Round "4.37"]
[White "Guid, Taja"]
[Black "Nyysti, Sampsa"]
[Result "0-1"]
[ECO "C24"]
[WhiteElo "1511"]
[BlackElo "2363"]
[Annotator "ChessBase"]
[PlyCount "80"]
[EventDate "2022.09.16"]
[EventType "swiss"]
[EventCountry "SLO"]
[SourceTitle "playchess.com"]
[Source "ChessBase"]
[SourceQuality "1"]
[TimeControl "5400+30"]

1. e4 {[%emt 0:01:21]} e5 {[%emt 0:00:02]} 2. Bc4 {[%emt 0:00:26]} Nf6 {[%emt 0:00:04]} 3. d3 {[%emt 0:00:16]} c6 {[%emt 0:00:41]} 4. Nf3 {[%emt 0:08:02]} d5 {[%emt 0:00:07]} 5. Bb3 {[%emt 0:12:06]} a5 {[%emt 0:00:17]} 6. a3 {[%emt 0:01:42]} a4 {[%emt 0:03:28]} 7. Ba2 {[%emt 0:00:18]} Bd6 {[%emt 0:02:31]} 8. O-O {[%emt 0:03:50]} O-O {[%emt 0:08:36]} 9. Bg5 {[%emt 0:06:21]} dxe4 {[%emt 0:01:14]} 10. dxe4 {[%emt 0:00:15]} h6 {[%emt 0:00:14]} 11. Bh4 {[%emt 0:06:08]} Qe7 {[%emt 0:02:24]} 12. Nc3 {[%emt 0:04:28]} Nbd7 {[%emt 0:03:40]} 13. Qe2 {[%emt 0:01:48]} Nc5 {[%emt 0:00:54]} 14. h3 {[%emt 0:01:27]} Be6 {[%emt 0:01:09]} 15. Rfd1 {[%emt 0:03:59]} Bxa2 {[%emt 0:01:29]} 16. Rxa2 {[%emt 0:00:15]} Bc7 {[%emt 0:01:20]} 17. Raa1 {[%emt 0:02:39]} b5 {[%emt 0:11:23]} 18. Nh2 {[%emt 0:11:27]} Qe6 {[%emt 0:05:39]} 19. Ng4 {[%emt 0:06:26]} Nfd7 {[%emt 0:01:25]} 20. f3 {[%emt 0:02:47]} Ba5 {[%emt 0:03:31]} 21. Kh2 {[%emt 0:02:04]} f6 {[%emt 0:08:33]} 22. Ne3 {[%emt 0:01:11]} Rfd8 {[%emt 0:00:39]} 23. Nf5 {[%emt 0:00:49]} Nb7 {[%emt 0:03:52]} 24. Rd2 {[%emt 0:03:44]} Bxc3 {[%emt 0:02:07]} 25. bxc3 {[%emt 0:00:35]} Nb6 {[%emt 0:00:18]} 26. Rxd8+ {[%emt 0:01:22]} Rxd8 {[%emt 0:00:24]} 27. Be1 {[%emt 0:01:50]} Nc4 {[%emt 0:00:57]} 28. Qf2 {[%emt 0:00:33]} Kh7 {[%emt 0:03:53]} 29. Qa7 {[%emt 0:01:46]} Rd7 {[%emt 0:00:36]} 30. Qf2 {[%emt 0:02:24]} Nbd6 {[%emt 0:00:33]} 31. Ne3 Nxe3 {[%emt 0:00:15]} 32. Qxe3 {[%emt 0:01:44]} Nc4 {[%emt 0:00:20]} 33. Qc5 {[%emt 0:00:17]} Rd6 {[%emt 0:04:53]} 34. Kg3 {[%emt 0:00:42]} f5 {[%emt 0:00:52]} 35. Kh2 {[%emt 0:01:50]} fxe4 {[%emt 0:00:43]} 36. fxe4 {[%emt 0:00:30]} Qg6 {[%emt 0:00:14]} 37. Bg3 {[%emt 0:00:43]} Qxe4 {[%emt 0:01:52]} 38. Re1 {[%emt 0:00:09]} Qxc2 {[%emt 0:02:32]} 39. Bxe5 {[%emt 0:00:34]} Rg6 {[%emt 0:00:06]} 40. Rg1 {[%emt 0:00:29]} Rg5 {[%emt 0:00:51]} 0-1

[Event "26th Hit Open-A 2022"]
[Site "Nova Gorica"]
[Date "2022.09.18"]
[Round "4.38"]
[White "Chkhaidze, Nikoloz"]
[Black "Novak, Rok"]
[Result "1-0"]
[ECO "D41"]
[WhiteElo "2239"]
[BlackElo "1763"]
[Annotator "TA"]
[PlyCount "65"]
[EventDate "2022.09.16"]
[EventType "swiss"]
[EventCountry "SLO"]
[SourceTitle "playchess.com"]
[Source "ChessBase"]
[SourceQuality "1"]
[TimeControl "5400+30"]

{[%evp 26,65,18,6,21,0,0,0,3,5,9,12,34,21,55,51,72,74,75,16,105,69,179,183,175,23,507,507,857,932,916,711,733,728,727,691,679,646,1116,1064,1138,1093]} 1. d4 {[%emt 0:04:53]} d5 {[%emt 0:00:52]} 2. c4 {[%emt 0:00:02]} e6 {[%emt 0:00:06]} 3. Nf3 {[%emt 0:00:02]} Nf6 {[%emt 0:00:17]} 4. Nc3 {[%emt 0:00:01]} c5 {[%emt 0:00:13]} 5. cxd5 {[%emt 0:00:08]} Nxd5 {[%emt 0:00:12]} 6. e4 {[%emt 0:00:01]} Nxc3 {[%emt 0:00:13]} 7. bxc3 {[%emt 0:00:05][%cal Bb2c3,Bc3d4][%mdl 32]} cxd4 {[%emt 0:00:14]} 8. cxd4 {[%emt 0:00:01]} Bb4+ {[%emt 0:00:15]} 9. Bd2 {[%emt 0:00:01]} Bxd2+ 10. Qxd2 {[%emt 0:00:01]} O-O {[%emt 0:00:28]} 11. Bc4 {[%emt 0:01:34]} Nd7 {[%emt 0:00:23]} 12. O-O {[%emt 0:00:02]} b6 {[%emt 0:00:20]} 13. Rad1 {[%emt 0:00:03]} Bb7 {[%emt 0:00:39]} 14. Rfe1 {[%emt 0:00:01]} Rc8 {[%emt 0:00:58] D41: Queen's Gambit Declined: Semi-Tarrasch with 5 cxd5.} 15. Bb3 {[%emt 0:03:09]} Re8 {[%emt 0:03:04]} 16. h3 {[%emt 0:00:57]} Nf6 {[%emt 0:04:45] The position is equal.} 17. Qf4 {[%emt 0:00:13][%cal Od4d5]} Qc7 {[%emt 0:05:54]} 18. Ne5 {[%emt 0:04:09] [#]} h6 $146 {[%emt 0:03:34]} ({Predecessor:} 18... Re7 19. Qh4 b5 20. Rd3 a5 21. Rg3 Nxe4 22. Rxe4 Bxe4 23. Qxe4 a4 24. Bd1 f6 {½-½ (36) Vidit,S (2727)-Duda,J (2760) Wijk aan Zee 2022}) 19. g4 {[%emt 0:06:15]} Nh7 {[%emt 0:07:06]} 20. h4 {[%emt 0:04:38] aiming for d5.} g5 {[%emt 0:06:33]} 21. hxg5 {[%emt 0:07:01]} hxg5 {[%emt 0:00:27] [#]} 22. Qe3 {[%emt 0:01:33] White is more active.} (22. Qh2 $1 $16 {[%cal Rh2h5]}) 22... Qe7 {[%emt 0:05:56]} (22... Kg7 $11 {keeps the balance.}) 23. Kg2 $16 {[%emt 0:01:28]} Kg7 {[%emt 0:00:31]} (23... Nf8 $14) 24. Rh1 $18 {[%emt 0:02:04] Black must now prevent Rh5.} Rh8 {[%emt 0:01:00] [#]} 25. Rh5 $2 {[%emt 0:02:12]} ({And not} 25. Qh3 Bxe4+ 26. f3 Nf6 $17) (25. Nf3 $1 $18) 25... Qf6 $2 {[%emt 0:02:51][%mdl 8192] Black cannot hold the game after this.} (25... f6 $11 {and Black stays safe.}) 26. Rdh1 {[%emt 0:02:17] White is clearly winning.} Qe7 {[%emt 0:08:32]} (26... Rc7 $142 27. Nf3 Rcc8) 27. Rh6 {[%emt 0:05:20]} Rcg8 {[%emt 0:05:16] [#]} 28. Nxf7 $1 {[%emt 0:20:01][%mdl 512]} Qxf7 {[%emt 0:00:05]} 29. Bxe6 {[%emt 0:00:16]} Qf4 {[%emt 0:00:06]} 30. Qxf4 {[%emt 0:02:17]} gxf4 {[%emt 0:00:08]} 31. Bxg8 {[%emt 0:01:07][%cal Rh6h7]} Kxg8 {[%emt 0:00:06]} 32. f3 {[%emt 0:01:13]} Kg7 {[%emt 0:01:35]} 33. g5 {[%emt 0:00:32] Weighted Error Value: White=0.19 (very precise) /Black=0.68} 1-0

[Event "26th Hit Open-A 2022"]
[Site "Nova Gorica"]
[Date "2022.09.18"]
[Round "4.39"]
[White "Bauer, Thomas"]
[Black "Budai, Federico"]
[Result "1-0"]
[ECO "C24"]
[WhiteElo "2200"]
[BlackElo "1712"]
[Annotator "TA"]
[PlyCount "163"]
[EventDate "2022.09.16"]
[EventType "swiss"]
[EventCountry "SLO"]
[SourceTitle "playchess.com"]
[Source "ChessBase"]
[SourceQuality "1"]
[TimeControl "5400+30"]

{[%evp 9,163,8,22,0,0,2,0,4,0,0,14,0,8,0,9,12,25,20,66,56,47,54,50,47,49,64,59,28,21,28,43,39,89,22,109,29,37,32,47,47,47,47,47,22,4,5,3,0,78,88,78,79,176,176,202,197,229,225,236,214,218,220,222,150,189,182,190,182,536,536,532,508,522,516,522,471,503,471,796,802,795,774,696,679,930,908,910,778,905,785,733,721,819,896,817,784,882,866,841,734,723,585,1159,1134,1695,1991,2020,1877,2158,2166,12834,12834,12833,12835,12835,2306,1789,0,12837,12837,12837,12831,12837,12832,12841,12841,29951,12842,12842,12843,12843,12842,12842,12843,12843,12843,12843,12843,12844,12844,12845,12843,12845,12843,12843,12843,12844,12844,12844,12843,12845,12846,12846,12846,12846,12847]} 1. e4 {[%emt 0:04:15]} e5 {[%emt 0:00:08]} 2. Bc4 {[%emt 0:00:02]} Nf6 {[%emt 0:00:11]} 3. d3 {[%emt 0:00:07]} c6 {[%emt 0:00:09]} 4. Nf3 {[%emt 0:00:17]} d5 {[%emt 0:00:39]} 5. Bb3 {[%emt 0:00:03]} a5 {[%emt 0:00:18] aiming for ...a4.} 6. Nc3 {[%emt 0:00:10] C24: Bishop's Opening: 2...Nf6.} (6. Nxe5 $2 a4 7. Bxd5 cxd5 8. exd5 Nxd5 $19) 6... Bb4 $1 {[%emt 0:06:00]} 7. a3 {[%emt 0:00:31]} (7. Nxe5 $2 a4 8. Bxd5 cxd5 $19) 7... Bxc3+ {[%emt 0:02:11]} 8. bxc3 {[%emt 0:00:02] The position is equal.} a4 {[%emt 0:00:22]} 9. Ba2 {[%emt 0:00:02]} Qd6 {[%emt 0:02:34]} 10. O-O {[%emt 0:04:05]} O-O {[%emt 0:01:45]} 11. Bg5 {[%emt 0:00:03] [#]} dxe4 $146 {[%emt 0:13:32]} ({Predecessor:} 11... Nbd7 12. Nh4 Nc5 13. f4 Ncxe4 14. dxe4 Nxe4 15. Kh1 Qc5 16. c4 f6 17. cxd5 Nc3 {½-½ (26) Karjakin,S (2776)-Gashimov,V (2746) Monte Carlo 2011}) 12. dxe4 {[%emt 0:01:12]} Qxd1 {[%emt 0:16:12]} 13. Rfxd1 {[%emt 0:22:15]} Nxe4 {[%emt 0:13:01]} (13... h6 $11 14. Bxf6 gxf6) 14. Be7 $14 {[%emt 0:01:45]} Re8 {[%emt 0:09:17] [#]} 15. Nxe5 $1 {[%emt 0:00:09]} Be6 {[%emt 0:00:56]} 16. Bxe6 {[%emt 0:09:07]} fxe6 {[%emt 0:00:17] [#]} 17. c4 $1 {[%emt 0:03:23]} Na6 $1 {[%emt 0:10:51]} 18. Bh4 {[%emt 0:02:16] Rd4 is the strong threat.} g5 {[%emt 0:10:50]} 19. Bg3 {[%emt 0:03:33]} Nxg3 {[%emt 0:00:15]} 20. hxg3 {[%emt 0:00:02]} Rad8 {[%emt 0:02:10]} (20... Nc5 $14) 21. Nd7 {[%emt 0:09:28]} ({White should try} 21. f4 $16) 21... Kf7 {[%emt 0:00:58]} (21... Kg7 $11) 22. Rd3 {[%emt 0:00:01]} (22. Rab1 $16) 22... Ke7 $11 {[%emt 0:00:25]} 23. Rad1 {[%emt 0:00:46]} b5 {[%emt 0:03:12]} 24. Ne5 $1 {[%emt 0:05:26]} Rxd3 {[%emt 0:00:48]} 25. Rxd3 $14 {[%emt 0:00:02][%mdl 4096] Endgame KRN-KRN} Nb8 {[%emt 0:00:16]} 26. Rf3 {[%emt 0:08:45]} Rf8 {[%emt 0:01:21]} 27. Re3 {[%emt 0:00:01]} Kd6 {[%emt 0:01:43]} 28. Nf3 {[%emt 0:02:48]} h6 {[%emt 0:00:21]} (28... g4 $11 {remains equal.} 29. Ng5 Rf5 30. Ne4+ (30. Rxe6+ $2 Kd7 $19) (30. Nxe6 Re5 $17) (30. Nxh7 Nd7 $15) 30... Ke7) 29. cxb5 $16 {[%emt 0:01:20] Black is now going downhill.} cxb5 {[%emt 0:01:54]} 30. Nd4 {[%emt 0:00:02][%csl LRb5,LRe6]} Rf6 {[%emt 0:01:33]} (30... b4 $16 {might work better.}) 31. Nxb5+ $18 {[%emt 0:00:01]} Kc6 {[%emt 0:00:33]} 32. Nc3 {[%emt 0:00:53]} Na6 {[%emt 0:00:52]} 33. Nxa4 {[%emt 0:06:59]} Nc7 {[%emt 0:00:22]} 34. c4 {[%emt 0:01:10]} Rf5 {[%emt 0:00:42]} 35. Nb2 {[%emt 0:03:08]} Kd6 {[%emt 0:00:33]} 36. Nd3 {[%emt 0:00:57]} Na6 {[%emt 0:00:23]} 37. g4 {[%emt 0:01:23]} Ra5 {[%emt 0:00:24]} 38. Nb4 {[%emt 0:00:06]} Nxb4 $2 {[%emt 0:00:45]} (38... Nc5 {is tougher.} 39. f3 Ra4) 39. axb4 {[%emt 0:00:05] KR-KR} Ra1+ {[%emt 0:00:02]} 40. Kh2 {[%emt 0:00:16]} Rb1 {[%emt 0:00:18]} 41. b5 {[%emt 0:02:39]} Rc1 {[%emt 0:00:59]} 42. Re4 {[%emt 0:00:07]} Rc2 {[%emt 0:00:09]} 43. Kg3 {[%emt 0:00:31]} e5 {[%emt 0:00:10]} (43... Rc3+ $142 44. f3 Rc2) 44. Kf3 {[%emt 0:00:50]} Rc3+ {[%emt 0:00:41]} 45. Ke2 {[%emt 0:00:04]} Rc2+ {[%emt 0:00:18]} 46. Ke1 {[%emt 0:00:24]} Kc5 {[%emt 0:01:24]} 47. g3 {[%emt 0:00:56]} Kd6 {[%emt 0:00:30]} 48. Kf1 {[%emt 0:00:56]} Rc1+ {[%emt 0:00:16]} 49. Kg2 {[%emt 0:00:05]} Rc2 {[%emt 0:00:07]} 50. Kf3 {[%emt 0:05:21]} Rc3+ {[%emt 0:00:27]} 51. Ke2 {[%emt 0:00:02]} Rc2+ {[%emt 0:01:00]} 52. Ke3 {[%emt 0:00:03]} Rc3+ {[%emt 0:00:40]} 53. Kd2 {[%emt 0:00:12]} Rf3 {[%emt 0:00:22]} 54. Re2 {[%emt 0:02:05]} Ra3 {[%emt 0:00:47]} 55. Kc1 {[%emt 0:01:01]} Kc5 {[%emt 0:00:28]} 56. Rxe5+ {[%emt 0:02:03]} Kxc4 {[%emt 0:00:07]} 57. b6 {[%emt 0:00:38][%cal Bb5b6,Bb6b7][%mdl 32]} Rc3+ {[%emt 0:00:49]} 58. Kd2 {[%emt 0:00:38] Re3 would kill now.} Rd3+ {[%emt 0:00:12]} 59. Ke2 {[%emt 0:00:09]} Rd6 {[%emt 0:00:07]} 60. b7 {[%emt 0:00:19]} Rb6 {[%emt 0:00:11]} 61. Re7 {[%emt 0:00:35]} Kd5 {[%emt 0:01:11]} 62. Rh7 {[%emt 0:00:25]} (62. f4 $142 Kd6 63. Rh7) 62... Ke4 {[%emt 0:00:38]} 63. Re7+ $2 {[%emt 0:01:18]} (63. f3+ $18 Kd4 64. f4) 63... Kd4 $2 {[%emt 0:00:17][%mdl 8192]} (63... Kd5 $11 64. f4 Kd6) 64. Kf3 {[%emt 0:00:19]} Rb3+ {[%emt 0:00:14] [#]} 65. Kg2 $1 {[%emt 0:00:10]} Rb6 {[%emt 0:00:26]} 66. Kh3 {[%emt 0:00:25]} Rb1 {[%emt 0:01:00]} 67. f4 {[%emt 0:00:35][%cal Bf2f4,Bf4f5,Bf5f6][%mdl 32]} Rh1+ {[%emt 0:00:39]} 68. Kg2 {[%emt 0:00:06]} Rb1 {[%emt 0:00:08] White is clearly winning.} 69. f5 {[%emt 0:00:11] White wants to mate with f6.} Rb2+ {[%emt 0:00:42]} 70. Kf3 {[%emt 0:01:50]} Rb3+ {[%emt 0:00:15]} 71. Ke2 {[%emt 0:00:21] White threatens f6 and mate.} Kd5 {[%emt 0:00:26]} 72. Kd2 {[%emt 0:00:58]} Kd6 {[%emt 0:00:21]} 73. f6 {[%emt 0:00:31]} Rb2+ {[%emt 0:01:00]} 74. Kc3 {[%emt 0:00:07]} Rb1 {[%emt 0:00:24]} 75. Kc4 {[%emt 0:00:31]} Rb2 {[%emt 0:00:26]} 76. Kd4 {[%emt 0:00:29]} Rb4+ {[%emt 0:00:07]} 77. Ke3 {[%emt 0:00:12]} Rb1 {[%emt 0:00:23]} 78. Ke4 {[%emt 0:00:03]} Rb5 {[%emt 0:00:07]} 79. Rh7 {[%emt 0:02:07]} Ke6 {[%emt 0:00:28]} 80. f7 {[%emt 0:01:14]} Rb4+ {[%emt 0:00:34]} 81. Ke3 {[%emt 0:00:29]} Rb3+ {[%emt 0:00:06]} 82. Kd4 {[%emt 0:00:05] Weighted Error Value: White=0.16 (very precise) /Black=0.27 (precise)} 1-0

[Event "26th Hit Open-A 2022"]
[Site "Nova Gorica"]
[Date "2022.09.18"]
[Round "4.40"]
[White "Rigatti, Giorgio"]
[Black "Charaus, Florian"]
[Result "1/2-1/2"]
[ECO "B13"]
[WhiteElo "1763"]
[BlackElo "1993"]
[Annotator "TA"]
[PlyCount "83"]
[EventDate "2022.09.16"]
[EventType "swiss"]
[EventCountry "SLO"]
[SourceTitle "playchess.com"]
[Source "ChessBase"]
[SourceQuality "1"]
[TimeControl "5400+30"]

{[%evp 10,83,25,-74,0,-29,-29,-29,-34,-37,-31,-34,-33,-37,-40,-65,-48,-95,-102,-124,-66,-122,-121,-133,-70,-239,-229,-210,-175,-168,-91,-105,-83,-60,-61,-168,-97,-89,47,29,338,341,327,182,183,143,161,157,147,140,168,166,248,248,252,250,258,254,262,253,262,262,367,341,367,356,341,270,303,285,292,262,332,0,282,0]} 1. e4 {[%emt 0:09:40]} c6 {[%emt 0:00:05]} 2. d4 {[%emt 0:00:30]} d5 {[%emt 0:00:06]} 3. exd5 {[%emt 0:00:20]} cxd5 {[%emt 0:00:05]} 4. Bd3 {[%emt 0:00:12]} Nc6 {[%emt 0:00:06]} 5. c3 {[%emt 0:00:10]} Qc7 {[%emt 0:00:06]} 6. Qb3 {[%emt 0:01:40] [#]} (6. h3 $11 {keeps the balance.}) 6... Nf6 {[%emt 0:00:08] B13: Caro-Kann: Exchange Variation and Panov-Botvinnik Attack.} (6... Nxd4 $1 $17 7. Qxd5 e5) 7. Nf3 {[%emt 0:00:18]} Bg4 {[%emt 0:00:16]} 8. Nbd2 {[%emt 0:00:12]} e6 {[%emt 0:00:16] Black has an edge.} 9. h3 {[%emt 0:00:27]} Bh5 {[%emt 0:00:08]} 10. O-O {[%emt 0:01:35]} Bd6 {[%emt 0:00:04]} 11. Re1 {[%emt 0:00:05]} O-O {[%emt 0:00:08]} 12. Bb5 {[%emt 0:08:49]} Rab8 {[%emt 0:00:23] [#]} 13. Bxc6 $146 {[%emt 0:05:24]} (13. Qa4 $15 {is superior.}) ({Predecessor:} 13. Qa4 Nd7 14. Bd3 Rfe8 15. g4 Bg6 16. Bxg6 hxg6 17. Nf1 b5 18. Qd1 b4 19. Ne3 bxc3 20. bxc3 {0-1 (42) Wienen,H (1998)-Davenport,D (2076) Germany 2010}) 13... bxc6 $17 {[%emt 0:01:16]} 14. Qa4 {[%emt 0:01:17]} Nd7 {[%emt 0:01:55] Against Ne5} (14... c5 $17 15. dxc5 Qxc5) 15. b4 {[%emt 0:04:07]} (15. b3 $15) 15... Rfe8 {[%emt 0:00:24]} 16. Qa6 {[%emt 0:03:41]} e5 {[%emt 0:05:43]} (16... f6 $17 17. Nb3 Bxf3 18. gxf3 Nf8) 17. Bb2 $2 {[%emt 0:17:08]} ({White should try} 17. dxe5 $1 $15 Nxe5 18. Nd4) 17... e4 $19 {[%emt 0:00:14]} 18. Nh4 {[%emt 0:05:34]} Bf4 {[%emt 0:00:08]} 19. Nf1 {[%emt 0:00:51]} Nb6 {[%emt 0:02:16]} (19... Bg5 $19 20. Nf5 Bg6) 20. Bc1 $17 {[%emt 0:05:42]} Bxc1 {[%emt 0:20:48]} 21. Raxc1 {[%emt 0:00:25]} Nc4 {[%emt 0:00:07]} 22. Nf5 {[%emt 0:04:38] Prevents Qe7.} ({Better is} 22. Rc2 $15) 22... Rb6 {[%emt 0:00:23]} (22... Qd7 $19 23. N5g3 Bg6) 23. Qa4 {[%emt 0:01:21] [#]} Nb2 {[%emt 0:00:02]} (23... Qd7 $1 $17 {[%cal Rd7f5]} 24. N5g3 Bg6) 24. Qc2 $14 {[%emt 0:00:18]} Nd3 {[%emt 0:00:04][%mdl 8192]} (24... Nc4 $11) 25. Qxd3 $1 $18 {[%emt 0:00:10]} Qf4 {[%emt 0:01:31]} (25... Qd7 26. Qe3 $18) 26. N5g3 {[%emt 0:00:25]} (26. Qe3 $142 Qxf5 27. Ng3) 26... Qxc1 {[%emt 0:00:56] [#]} 27. Nxh5 $1 $40 {[%emt 0:01:46][%mdl 128] White goes for the king.} Qg5 {[%emt 0:01:52]} (27... exd3 $2 28. Rxe8# (28. Rxc1 Re2 $16)) 28. Nhg3 {[%emt 0:01:39]} f5 {[%emt 0:00:06][%cal Bf7f5,Bf5f4,Bf4e3][%mdl 32]} 29. Qd2 {[%emt 0:02:42]} f4 {[%emt 0:00:42][%cal Oe4e3]} 30. Ne2 {[%emt 0:02:13]} e3 {[%emt 0:04:36]} (30... Rf8 $142 31. c4 Rbb8) 31. fxe3 {[%emt 0:01:42]} fxe3 {[%emt 0:00:04]} 32. Qd3 {[%emt 0:02:58]} ({Don't take} 32. Qc1 $6 Rb7 $16) 32... a5 {[%emt 0:14:54]} 33. a3 {[%emt 0:00:22][%cal Ba2a3,Ba3b4][%mdl 32]} axb4 {[%emt 0:00:08]} 34. axb4 {[%emt 0:00:01]} Rb7 {[%emt 0:02:13]} 35. Neg3 {[%emt 0:06:08]} Qd8 {[%emt 0:26:27]} (35... g6 $142 36. Rxe3 Rbe7 37. Rxe7 Qxe7) 36. Rxe3 {[%emt 0:01:10]} Ra7 {[%emt 0:03:27]} 37. Rxe8+ {[%emt 0:04:20]} Qxe8 {[%emt 0:00:26]} 38. Qe2 {[%emt 0:00:32][%cal Re2e8]} Re7 {[%emt 0:00:08]} 39. Qg4 {[%emt 0:02:17]} Re1 {[%emt 0:04:30]} 40. Kf2 {[%emt 0:00:33] aiming for Nf5.} Re6 {[%emt 0:02:51]} 41. Kg1 {[%emt 0:01:50]} Re1 $1 {[%emt 0:00:07]} 42. Kf2 $2 {[%emt 0:00:23] Weighted Error Value: White=0.42/Black=0.35} (42. Kh2 $18) 1/2-1/2